bitfinex-derivatives/quotes_ETHF0:USTF0_20250709
["timestamp","ask_amount","ask_price","bid_price","bid_amount"]
[1752098701532,0.72291,2765.6,2765.5,3.2078]
[1752098702436,0.9623,2765.9,2765.6,0.72291]
[1752098702630,0.72289,2765.7,2765.6,0.72291]
[1752098702824,0.7229,2765.7,2765.5,3.93072]
[1752098703930,0.72291,2765.6,2765.5,3.2078]
[1752098704228,0.72301,2765.3,2765.2,3.2078]
[1752098704430,0.72298,2765.4,2765.2,5.17182]
[1752098704830,0.72296,2765.5,2765.2,4.4488]
[1752098705031,0.72296,2765.5,2765.3,1.2827]
[1752098705226,0.72297,2765.4,2765.3,1.2827]
[1752098706136,0.72295,2765.5,2765.3,1.2827]
[1752098706436,0.72297,2765.4,2765.3,2.00568]
[1752098706631,0.72297,2765.4,2765.3,1.2827]
[1752098708238,0.72297,2765.4,2765.3,2.00569]
[1752098708438,0.72297,2765.4,2765.3,1.2827]
[1752098708839,0.72297,2765.4,2765.3,2.00569]
[1752098709137,0.72309,2765.0,2764.9,3.2078]
[1752098709635,0.72309,2765.0,2764.9,4.5326]
[1752098710036,0.72309,2765.0,2764.5,0.6485]
[1752098710037,0.72315,2764.7,2764.6,3.2078]
[1752098710231,0.7232,2764.5,2764.3,4.5326]
[1752098710436,0.72319,2764.6,2764.4,0.72321]
[1752098710638,0.72319,2764.6,2764.5,1.3248]
[1752098712037,0.72319,2764.6,2764.5,2.048]
[1752098712238,1.31523829,2764.6,2764.5,1.3248]
[1752098712440,2.03840829,2764.6,2764.5,1.3248]
[1752098713342,2.03840829,2764.6,2764.5,2.048]
[1752098714643,1.31523829,2764.6,2764.5,2.048]
[1752098715040,2.03840829,2764.6,2764.5,2.048]
[1752098715346,1.31523829,2764.6,2764.5,3.046]
[1752098715544,1.80764,2765.1,2765.0,0.72303]
[1752098715545,0.72305,2765.1,2765.0,0.72303]
[1752098715844,0.72302,2765.3,2765.2,0.72299]
[1752098716445,0.72291,2765.7,2765.6,0.72288]
[1752098716640,0.72295,2765.6,2765.5,0.72293]
[1752098717446,52.093,2765.9,2765.5,0.998]
[1752098717648,0.72272,2766.4,2766.3,0.7227]
[1752098717850,0.7227,2766.5,2766.4,0.7227]
[1752098718147,2.09257888,2766.9,2766.2,3.2078]
[1752098718343,0.28609888,2766.9,2766.3,1.3224]
[1752098718542,1.80648,2766.9,2766.3,1.3224]
[1752098718743,0.72269,2766.5,2766.4,0.7227]
[1752098719247,0.72266,2766.6,2766.4,0.72269]
[1752098719447,0.72266,2766.6,2766.5,1.3224]
[1752098719642,1.80648,2766.9,2766.3,0.72271]
[1752098719841,1.80648,2766.9,2766.3,1.95271]
[1752098720045,0.7227,2766.5,2766.3,1.23]
[1752098720348,0.72266,2766.6,2766.3,1.23]
[1752098720848,1.80642,2767.0,2766.3,1.23]
[1752098721147,0.72267,2766.6,2766.3,1.95271]
[1752098721544,0.72268,2766.5,2766.3,1.95271]
[1752098721744,2.78968,2766.9,2766.3,1.23]
[1752098721948,0.72269,2766.5,2766.3,1.95273]
[1752098722546,0.72269,2766.5,2766.3,1.23]
[1752098722745,2.78968,2766.9,2766.3,1.23]
[1752098722746,0.72264,2766.7,2766.3,1.23]
[1752098722946,0.72264,2766.7,2766.5,3.93047]
[1752098723150,0.9832,2767.3,2766.6,1.2908]
[1752098723445,3.2078,2767.4,2766.6,2.2888]
[1752098723846,0.72258,2766.9,2766.7,0.72261]
[1752098724046,0.72258,2766.9,2766.8,1.2908]
[1752098724840,0.72265,2766.6,2766.5,3.2078]
[1752098726249,1.80634,2767.1,2766.6,0.72265]
[1752098726444,0.7226,2766.8,2766.7,1.258]
[1752098729652,0.7226,2766.8,2766.2,0.998]
[1752098729653,0.72273,2766.3,2766.2,3.2078]
[1752098731047,1.80691,2766.2,2765.8,3.2078]
[1752098731352,0.72283,2765.9,2765.8,3.2078]
[1752098731753,0.72291,2765.6,2765.5,1.2534]
[1752098731947,1.80746,2765.4,2764.9,2.12757299]
[1752098732147,0.72305,2765.1,2764.8,3.2078]
[1752098732355,1.80742,2765.4,2764.9,1.3103]
[1752098732752,3.2078,2765.3,2764.9,1.3103]
[1752098733056,0.72307,2765.0,2764.9,1.3103]
[1752098733854,0.72307,2765.0,2764.9,2.0334]
[1752098734056,0.72307,2765.0,2764.9,1.3103]
[1752098735152,1.80736,2765.5,2764.9,2.3083]
[1752098735359,0.72305,2765.1,2765.0,0.72305]
[1752098735662,0.72304,2765.1,2765.0,2.96385]
[1752098736161,0.72304,2765.2,2765.1,0.72303]
[1752098736862,0.72304,2765.1,2765.0,4.92885]
[1752098738557,0.72304,2765.1,2765.0,3.93085]
[1752098738764,0.72296,2765.5,2765.4,0.72293]
[1752098738964,0.72294,2765.6,2765.5,0.72292]
[1752098739268,3.2078,2765.8,2765.4,1.68555]
[1752098739269,0.72294,2765.5,2765.4,1.68555]
[1752098739661,0.72289,2765.7,2765.6,0.72291]
[1752098739864,4.1979,2766.4,2765.8,0.72286]
[1752098740161,1.26318017,2766.3,2766.1,0.72277]
[1752098740359,0.72272,2766.4,2766.2,0.72275]
[1752098740563,1.26348329,2766.3,2766.2,0.72275]
[1752098740757,1.26348329,2766.3,2766.2,1.68535]
[1752098741157,3.2078,2766.7,2766.6,0.72265]
[1752098741463,1.26358766,2766.7,2766.6,0.72265]
[1752098741861,3.93037,2767.0,2766.9,0.72257]
[1752098742263,3.2078,2767.0,2766.9,0.72257]
[1752098742565,1.71264,2767.1,2767.0,0.72255]
[1752098742860,0.72255,2767.0,2766.9,0.72257]
[1752098743367,0.72255,2767.0,2766.8,0.72259]
[1752098743368,1.71265,2767.0,2766.8,0.72259]
[1752098743862,0.72255,2767.0,2766.4,1.80673]
[1752098744165,0.9901,2767.0,2766.9,0.72257]
[1752098744361,0.72257,2766.9,2766.8,0.72258]
[1752098744560,0.9901,2766.9,2765.9,2.46936]
[1752098744761,1.2094,2766.8,2766.5,0.72268]
[1752098744963,0.72265,2766.6,2766.4,0.72268]
[1752098745158,1.71275,2766.6,2766.4,0.72268]
[1752098745355,0.72268,2766.5,2766.4,0.72268]
[1752098745765,1.71277,2766.6,2766.4,0.72268]
[1752098745961,0.72268,2766.5,2766.0,1.80703]
[1752098746161,0.72268,2766.5,2766.3,0.72271]
[1752098746362,0.9901,2766.4,2765.9,0.6623]
[1752098746666,1.71282,2766.4,2766.2,0.72274]
[1752098746969,0.72273,2766.3,2766.2,0.72274]
[1752098747566,0.72273,2766.3,2766.1,0.72276]
[1752098747762,0.9901,2766.4,2765.9,0.6623]
[1752098747961,1.7128,2766.4,2766.3,0.72273]
[1752098748466,1.7128,2766.4,2765.9,2.46937]
[1752098748666,1.7128,2766.4,2766.3,0.72273]
[1752098748868,0.72269,2766.5,2766.4,0.7227]
[1752098749268,0.72269,2766.5,2766.3,0.72271]
[1752098749567,0.72267,2766.6,2766.4,0.72269]
[1752098749872,0.7227,2766.4,2766.3,0.72272]
[1752098750064,0.72268,2766.5,2766.4,0.72269]
[1752098750265,1.71277,2766.6,2766.4,0.72269]
[1752098750459,0.9901,2766.6,2766.4,0.72269]
[1752098750768,1.71277,2766.6,2766.4,0.72269]
[1752098751259,0.72268,2766.5,2766.4,0.72269]
[1752098751767,1.80645,2766.9,2766.2,0.9626]
[1752098751966,29.1968,2767.0,2766.2,0.9626]
[1752098752270,0.72269,2766.5,2766.4,0.7227]
[1752098752472,25.972,2766.5,2765.5,4.1704]
[1752098752769,0.72297,2765.4,2765.2,2.13420555]
[1752098752969,5.23522559,2765.8,2764.6,3.2078]
[1752098752970,26.0,2765.8,2764.6,3.2078]
[1752098753271,3.2078,2765.7,2764.7,1.80788]
[1752098753476,0.723,2765.3,2765.1,0.72302]
[1752098754369,0.72302,2765.2,2765.0,0.72306]
[1752098754569,0.72302,2765.2,2765.1,1.287]
[1752098755174,0.72302,2765.2,2765.1,2.01004]
[1752098755375,0.72302,2765.2,2765.1,1.287]
[1752098755576,0.72302,2765.2,2765.1,2.01004]
[1752098756072,0.72302,2765.2,2765.1,1.287]
[1752098756274,0.72302,2765.2,2765.1,2.01004]
[1752098756574,0.72301,2765.3,2765.2,0.72301]
[1752098757166,3.2078,2765.6,2765.1,1.287]
[1752098757372,0.72302,2765.2,2765.1,1.287]
[1752098757674,0.72302,2765.2,2765.1,2.01004]
[1752098758972,3.2078,2765.6,2765.1,2.2496]
[1752098759169,0.72297,2765.5,2765.4,0.72295]
[1752098759374,3.2078,2765.6,2765.2,1.2431]
[1752098759572,0.72297,2765.4,2765.3,1.99209]
[1752098759770,0.72297,2765.4,2765.3,1.2691]
[1752098760473,0.72297,2765.4,2765.3,1.99209]
[1752098760774,0.72297,2765.4,2765.3,1.2691]
[1752098760974,0.72297,2765.4,2765.3,1.99209]
[1752098762172,0.9901,2765.8,2765.3,1.2691]
[1752098762376,0.72293,2765.6,2765.3,1.2691]
[1752098762675,1.32963,2765.6,2765.5,0.72294]
[1752098762875,0.72291,2765.7,2765.5,1.38474]
[1752098763076,0.6067,2765.6,2765.5,1.38474]
[1752098763278,1.32961,2765.6,2765.5,1.38474]
[1752098763874,0.6067,2765.6,2765.5,1.38474]
[1752098764874,0.72297,2765.4,2765.3,3.2078]
[1752098765180,1.34139718,2765.4,2765.3,4.59258]
[1752098765572,0.72304,2765.2,2765.0,4.4692]
[1752098765772,0.6067,2765.2,2765.1,1.38483]
[1752098766373,1.32972,2765.2,2765.1,1.38483]
[1752098766577,2.31983,2765.2,2765.1,0.72304]
[1752098766780,1.34341171,2765.2,2765.1,1.38484]
[1752098766980,0.72304,2765.1,2765.0,3.93086]
[1752098767279,2.31984,2765.1,2765.0,3.93086]
[1752098767773,2.33352171,2765.1,2765.0,3.93086]
[1752098767980,0.72312,2764.9,2764.8,0.72312]
[1752098768178,1.32982,2764.9,2764.8,0.72312]
[1752098768881,1.34350171,2764.9,2764.8,0.72312]
[1752098769078,0.72312,2764.8,2764.7,3.2078]
[1752098769274,1.80802,2764.5,2763.8,3.2078]
[1752098769480,2.82850696,2764.4,2763.7,0.6746]
[1752098769680,0.72334,2764.0,2763.7,2.0126]
[1752098769978,0.72336,2763.9,2763.8,1.338]
[1752098770178,0.72334,2764.0,2763.9,0.72336]
[1752098770480,4.8593,2764.7,2763.9,0.9764]
[1752098770680,0.72332,2764.1,2764.0,2.06132]
[1752098771481,0.72326,2764.3,2764.2,0.72326]
[1752098771682,0.72321,2764.5,2764.4,0.7232]
[1752098772378,2.77993,2765.0,2764.4,0.7232]
[1752098772379,1.80768,2765.0,2764.4,4.1842]
[1752098772581,0.72328,2764.2,2764.1,3.93108]
[1752098773180,1.80789,2764.7,2764.1,3.2078]
[1752098773478,0.72321,2764.5,2764.4,0.7232]
[1752098773682,0.72325,2764.3,2764.2,1.2736]
[1752098774779,0.72328,2764.2,2764.1,3.2078]
[1752098775380,0.9722,2764.6,2764.1,4.4688]
[1752098775582,0.72325,2764.3,2764.2,1.261]
[1752098775980,0.72325,2764.3,2764.2,1.98428]
[1752098776177,0.72324,2764.4,2764.3,0.72324]
[1752098776384,0.72324,2764.4,2764.3,1.98424]
[1752098776578,0.72328,2764.2,2764.1,3.2078]
[1752098776779,0.72328,2764.2,2764.1,5.19211]
[1752098777583,0.72323,2764.5,2764.4,0.72321]
[1752098777783,0.72323,2764.5,2764.1,4.4688]
[1752098777784,0.72328,2764.3,2764.2,0.72326]
[1752098778083,0.72328,2764.3,2764.2,1.97456]
[1752098778485,0.72324,2764.4,2764.3,0.72323]
[1752098778882,0.9722,2764.6,2764.2,1.2513]
[1752098778883,0.72325,2764.3,2764.2,1.97456]
[1752098779182,0.72325,2764.3,2764.2,1.2513]
[1752098779585,0.72325,2764.3,2764.2,1.97458]
[1752098780184,0.72325,2764.3,2764.2,1.2513]
[1752098780484,0.72325,2764.3,2764.2,1.97458]
[1752098780680,0.72328,2764.2,2764.1,3.2078]
[1752098781090,0.72328,2764.2,2764.1,3.93111]
[1752098781490,0.72328,2764.2,2764.1,3.2078]
[1752098781890,0.72328,2764.2,2764.1,3.93111]
[1752098782296,0.73498179,2764.2,2764.1,3.2078]
[1752098782489,0.73498179,2764.2,2764.1,3.93111]
[1752098782694,1.38928179,2764.2,2764.1,3.2078]
[1752098782894,1.38928179,2764.2,2764.1,3.93111]
[1752098783390,1.39122308,2764.2,2764.1,3.93111]
[1752098783798,1.39122308,2764.2,2764.1,3.2078]
[1752098784499,1.39316437,2764.2,2764.1,3.2078]
[1752098784995,3.45031437,2764.2,2763.8,3.2078]
[1752098785190,3.45031437,2764.2,2763.4,3.93127]
[1752098785191,0.72346,2763.5,2763.4,3.93127]
[1752098785390,0.72346,2763.5,2763.4,4.54157]
[1752098785391,0.67182566,2763.5,2763.4,4.54157]
[1752098785596,0.01752566,2763.5,2763.4,3.93127]
[1752098785795,0.67182566,2763.5,2763.4,4.54157]
[1752098786196,1.39528566,2763.5,2763.4,3.2078]
[1752098786400,1.37776,2763.5,2763.4,3.8181]
[1752098786600,1.39722695,2763.5,2763.4,3.8181]
[1752098786801,0.72351,2763.3,2763.2,1.3329]
[1752098787100,0.72351,2763.4,2763.3,0.72351]
[1752098787301,0.72351,2763.4,2763.3,1.96491]
[1752098787500,0.74491824,2763.4,2763.3,2.57521]
[1752098788098,0.02140824,2763.4,2763.3,3.55161]
[1752098788602,0.72346,2763.6,2763.5,0.70007161]
[1752098788802,0.72346,2763.6,2763.5,1.31037161]
[1752098788993,0.72346,2763.6,2763.5,4.51817161]
[1752098789698,0.72343,2763.7,2763.6,0.7234]
[1752098789897,1.37773,2763.7,2763.6,2.5815]
[1752098790491,0.6543,2763.7,2763.5,3.2078]
[1752098790699,0.72351,2763.4,2763.3,0.7235]
[1752098791002,0.72351,2763.4,2763.3,1.3338]
[1752098791305,0.72348,2763.5,2763.4,0.72347]
[1752098791499,0.72348,2763.5,2763.4,1.33377]
[1752098791802,1.37778,2763.5,2763.4,1.33377]
[1752098792400,0.72348,2763.5,2763.4,1.33377]
[1752098792902,1.37778,2763.5,2763.4,1.33377]
[1752098793203,1.3894809,2763.5,2763.4,0.72347]
[1752098793498,1.3894809,2763.5,2763.4,1.33377]
[1752098793701,0.6660009,2763.5,2763.2,3.2078]
[1752098793904,0.72351,2763.3,2763.2,3.2078]
[1752098794200,0.0117009,2763.3,2763.2,0.6103]
[1752098794401,1.3895109,2763.3,2763.2,1.33384]
[1752098794605,1.3895109,2763.3,2763.2,0.72354]
[1752098794899,0.7352109,2763.3,2763.2,1.33384]
[1752098795500,0.7352109,2763.3,2763.2,4.54164]
[1752098795799,1.80862,2763.6,2763.2,4.54164]
[1752098795800,0.72351,2763.4,2763.3,0.70986985]
[1752098795996,1.80862,2763.6,2763.5,0.72344]
[1752098795997,0.72347,2763.6,2763.5,0.72344]
[1752098796195,0.72349,2763.4,2763.3,0.72348]
[1752098796500,0.72348,2763.6,2763.5,0.72345]
[1752098796700,0.72348,2763.6,2763.5,1.33375]
[1752098797001,5.0162,2764.0,2763.6,0.7234]
[1752098797002,0.72343,2763.7,2763.6,0.7234]
[1752098797198,0.6543,2763.7,2763.6,1.3337]
[1752098797399,4.17638823,2764.5,2763.6,6.5867]
[1752098797601,1.35275003,2764.4,2764.3,0.72325]
[1752098798201,2.07598003,2764.4,2764.3,0.72325]
[1752098798602,1.35275003,2764.4,2764.3,0.72325]
[1752098798804,1.35275003,2764.4,2764.3,3.93105]
[1752098801207,1.35275003,2764.4,2763.9,3.2078]
[1752098801507,1.35275003,2764.3,2764.2,0.72327]
[1752098801806,1.35453301,2764.4,2764.3,0.72325]
[1752098802002,1.35451908,2764.4,2764.3,0.72325]
[1752098802600,1.35451908,2764.4,2764.3,1.66935]
[1752098802805,3.20418823,2764.7,2764.6,0.72317]
[1752098803005,0.72313,2764.8,2764.7,0.72315]
[1752098803206,4.55849616,2764.9,2764.8,0.72312]
[1752098803503,1.35435126,2764.9,2764.8,3.52552696]
[1752098803803,1.35435126,2764.9,2764.8,1.66922]
[1752098804404,1.35435126,2764.9,2764.6,3.2078]
[1752098804707,1.35435126,2764.8,2764.7,1.3222]
[1752098805106,1.96475126,2764.8,2764.7,1.3222]
[1752098805299,2.68789126,2764.8,2764.7,2.65303]
[1752098806609,2.68789126,2764.8,2764.7,1.9299]
[1752098806804,2.68789126,2764.8,2764.7,2.04535]
[1752098807010,2.68789126,2764.8,2764.7,2.65305]
[1752098807208,2.68789126,2764.8,2764.7,1.9299]
[1752098807510,2.68789126,2764.8,2764.7,2.65305]
[1752098807803,2.68789126,2764.8,2764.7,1.9299]
[1752098809306,2.68789126,2764.8,2764.7,0.6077]
[1752098809607,1.33354,2764.8,2764.7,0.6077]
[1752098810505,0.72319,2764.6,2764.4,1.2437]
[1752098810812,1.33359,2764.6,2764.5,1.33088]
[1752098811212,1.33359,2764.6,2764.5,2.55788]
[1752098811407,0.72323,2764.4,2764.3,3.2078]
[1752098811710,0.72318,2764.6,2764.5,0.72318]
[1752098811908,0.72318,2764.6,2764.5,1.33088]
[1752098812108,1.33358,2764.6,2764.5,1.33088]
[1752098812309,0.72318,2764.6,2764.5,2.55788]
[1752098812704,1.33358,2764.6,2764.5,2.55788]
[1752098812904,0.72317,2764.7,2764.6,0.72314]
[1752098813106,1.33357,2764.7,2764.6,1.33084]
[1752098813713,0.72317,2764.7,2764.6,4.53864]
[1752098813908,1.33357,2764.7,2764.6,4.53864]
[1752098816411,0.6104,2764.7,2764.6,4.53864]
[1752098816613,1.33355,2764.7,2764.6,4.53864]
[1752098816816,0.72315,2764.7,2764.6,5.48474]
[1752098817915,1.33355,2764.7,2764.6,5.48474]
[1752098818111,0.72315,2764.7,2764.6,5.48474]
[1752098818310,6.02407827,2765.9,2764.6,11.61790696]
[1752098818510,0.723,2765.4,2765.3,0.72297]
[1752098818712,0.72307,2765.1,2764.9,3.2078]
[1752098818914,0.72307,2765.1,2765.0,0.72306]
[1752098819414,1.33347,2765.1,2765.0,1.33076]
[1752098819611,0.6104,2765.1,2765.0,1.33076]
[1752098819811,0.6104,2765.1,2765.0,2.53756]
[1752098820315,1.33344,2765.1,2765.0,2.53756]
[1752098820808,0.6104,2765.1,2765.0,2.53756]
[1752098821410,1.33344,2765.1,2765.0,2.53756]
[1752098821605,1.33344,2765.1,2764.5,3.2078]
[1752098821606,1.5873,2765.1,2764.5,3.2078]
[1752098821817,0.72312,2764.9,2764.5,6.22849]
[1752098822017,1.33352,2764.9,2764.8,1.33079]
[1752098822815,0.6104,2764.9,2764.8,1.33079]
[1752098823918,1.3335,2764.9,2764.8,1.82609748]
[1752098824119,1.3335,2764.9,2764.8,2.3374279]
[1752098824413,0.6104,2764.9,2764.8,2.3374279]
[1752098825613,1.3335,2764.9,2764.8,2.3374279]
[1752098826618,2.3104,2764.9,2764.8,1.0066379]
[1752098827209,4.9783056,2764.9,2764.8,1.0066379]
[1752098828220,2.6977056,2764.9,2764.8,1.0066379]
[1752098828720,3.6908056,2764.9,2764.8,1.0066379]
[1752098830611,11.8986056,2764.9,2764.8,1.0066379]
[1752098830817,13.1454056,2764.9,2764.8,1.0066379]
[1752098831015,5.9055056,2764.9,2764.8,2.3914579]
[1752098831315,5.9055056,2764.9,2764.8,1.6683379]
[1752098831515,6.8986056,2764.9,2764.8,1.0066379]
[1752098832314,6.8986056,2764.9,2764.8,0.49530748]
[1752098833116,3.6908056,2764.9,2764.8,0.49530748]
[1752098834524,2.7218056,2764.9,2764.8,1.15700748]
[1752098834822,2.7218056,2764.9,2764.8,0.49530748]
[1752098835017,2.7218056,2764.9,2764.8,1.15700748]
[1752098835317,2.7218056,2764.9,2764.8,0.49530748]
[1752098835524,3.7149056,2764.9,2764.8,0.02543869]
[1752098835720,5.57121256,2764.9,2764.8,0.02543869]
[1752098836726,10.57121256,2764.9,2764.8,8.69e-06]
[1752098836930,13.81127083,2764.9,2764.8,8.69e-06]
[1752098837126,15.07877083,2764.9,2764.8,8.69e-06]
[1752098837427,0.72331,2764.1,2764.0,2.2094]
[1752098837729,0.72331,2764.1,2764.0,3.59443]
[1752098837931,0.72322,2764.5,2764.4,0.7232]
[1752098838127,2.09315712,2764.5,2764.4,0.7232]
[1752098838834,1.36993712,2764.5,2764.4,0.7232]
[1752098839130,1.36993712,2764.5,2764.4,3.5913]
[1752098839931,0.72318,2764.6,2764.5,0.7232]
[1752098840127,1.37019391,2764.6,2764.5,1.9928]
[1752098840736,1.37019391,2764.6,2764.5,3.5913]
[1752098841034,1.37019391,2764.6,2764.5,6.7991]
[1752098841830,0.72309,2765.0,2764.9,0.7231]
[1752098842333,2.72766227,2765.0,2764.9,1.3848]
[1752098842532,2.09316227,2765.0,2764.9,1.3848]
[1752098842729,2.72766227,2765.0,2764.9,1.3848]
[1752098842930,2.09316227,2765.0,2764.9,2.5961]
[1752098843532,2.72766227,2765.0,2764.9,2.5961]
[1752098844536,2.72766227,2765.0,2764.9,1.873]
[1752098845038,2.72766227,2765.0,2764.9,2.5961]
[1752098845236,2.72766227,2765.0,2764.9,1.2113]
[1752098845533,2.72766227,2765.0,2764.9,2.5961]
[1752098846440,1.80782,2764.8,2764.3,0.7234]
[1752098846643,0.7232,2764.6,2764.5,1.3066]
[1752098846837,0.7232,2764.5,2764.4,0.72321]
[1752098847036,2.09327227,2764.5,2764.4,2.69151]
[1752098848639,2.09327227,2764.5,2764.4,3.17648143]
[1752098849046,2.09327227,2764.5,2764.4,3.17649581]
[1752098849244,1.37007227,2764.5,2764.4,3.17649581]
[1752098849446,0.7231,2764.9,2764.8,0.72312]
[1752098849645,2.03695479,2764.9,2764.8,1.20810581]
[1752098849846,2.12555479,2764.9,2764.8,1.20810581]
[1752098850147,2.12555479,2764.9,2764.8,1.86980581]
[1752098851246,2.76005479,2764.9,2764.8,1.86980581]
[1752098851446,2.12555479,2764.9,2764.8,1.38482]
[1752098851847,2.76005479,2764.9,2764.8,1.38482]
[1752098858060,2.76005479,2764.9,2764.8,0.6617]
[1752098858259,0.72312,2764.8,2764.7,1.93723]
[1752098858459,2.76007479,2764.8,2764.7,2.59895]
[1752098858755,2.12557479,2764.8,2764.7,2.59895]
[1752098859062,2.76007479,2764.8,2764.7,2.59895]
[1752098859861,2.76007479,2764.8,2764.7,1.8758]
[1752098860051,3.8547935,2764.8,2764.3,0.7234]
[1752098860359,0.72323,2764.4,2764.3,1.44665]
[1752098860561,0.72323,2764.4,2764.3,2.10805]
[1752098860758,1.33763,2764.4,2764.3,2.10805]
[1752098861153,3.2078,2765.3,2764.7,1.80785]
[1752098861354,3.96307827,2765.2,2765.0,0.6614]
[1752098861560,3.96307827,2765.2,2765.1,3.28926684]
[1752098861758,5.96818305,2765.2,2765.1,3.95066684]
[1752098861956,2.11372478,2765.2,2765.1,3.43874]
[1752098862356,1.39070478,2765.2,2765.1,4.34734]
[1752098862557,2.11372478,2765.2,2765.1,4.85924677]
[1752098862752,1.39070478,2765.2,2765.1,4.85924677]
[1752098863363,2.11372478,2765.2,2765.1,4.85924677]
[1752098863860,2.00510478,2765.2,2765.1,4.85924677]
[1752098864259,1.39070478,2765.2,2765.1,4.85924677]
[1752098864660,2.00510478,2765.2,2765.1,4.85924677]
[1752098865559,2.00510478,2765.2,2765.1,3.95064677]
[1752098866060,3.93156349,2765.2,2765.1,0.51190677]
[1752098866362,4.54596349,2765.2,2765.1,0.51190677]
[1752098868768,9.54596349,2765.2,2765.1,0.51190677]
[1752098868968,5.83156349,2765.2,2765.1,0.51190677]
[1752098872068,14.08270125,2765.2,2765.1,0.51190677]
[1752098872769,0.72317,2764.6,2764.5,0.7232]
[1752098872969,1.33757,2764.6,2764.5,1.90424863]
[1752098873170,2.00510478,2764.6,2764.5,3.72498734]
[1752098873369,6.45893776,2765.2,2764.8,0.72311]
[1752098873370,0.72313,2764.9,2764.8,0.72311]
[1752098873571,0.72313,2764.9,2764.8,1.90415863]
[1752098873871,1.33753,2764.9,2764.8,1.90415863]
[1752098874072,2.70631303,2764.9,2764.8,1.90415863]
[1752098874273,1.98318303,2764.9,2764.8,1.90415863]
[1752098874474,1.36878303,2764.9,2764.8,7.30535863]
[1752098874672,1.36878303,2764.9,2764.8,6.58224863]
[1752098874673,1.36995603,2764.9,2764.8,6.58224863]
[1752098874874,1.36995995,2765.2,2764.9,1.80773]
[1752098875066,1.36993962,2765.1,2765.0,2.51131863]
[1752098875272,3.2078,2765.5,2765.4,0.72297]
[1752098875568,0.72287,2765.8,2765.4,0.72297]
[1752098875569,3.25113776,2765.8,2765.6,0.72291]
[1752098875874,0.72289,2765.7,2765.6,0.72291]
[1752098876074,0.72289,2765.7,2765.6,1.24230421]
[1752098876276,1.33729,2765.7,2765.6,1.24230421]
[1752098876575,2.24942871,2765.7,2765.6,0.51939421]
[1752098876876,1.33729,2765.7,2765.6,1.24230421]
[1752098877174,1.33729,2765.7,2765.6,0.51939421]
[1752098878770,1.33729,2765.7,2765.6,1.18034161]
[1752098880165,1.33729,2765.7,2765.6,1.90325161]
[1752098881272,1.33729,2765.7,2765.6,1.18034161]
[1752098884276,1.33729,2765.7,2765.6,1.90325161]
[1752098885374,1.33729,2765.7,2765.6,1.18034161]
[1752098886379,1.33729,2765.7,2765.6,1.90325161]
[1752098887281,3.54024995,2765.7,2765.6,0.51894161]
[1752098887483,6.74804995,2765.7,2765.6,0.51894161]
[1752098889083,0.72299,2765.3,2765.2,0.7892]
[1752098889379,1.35989,2765.3,2765.2,1.4506]
[1752098890281,2.34129,2765.3,2765.2,0.6614]
[1752098890483,1.35989,2765.3,2765.2,0.6614]
[1752098890675,1.35989,2765.3,2765.2,1.38442]
[1752098890982,0.72299,2765.3,2765.2,2.37312]
[1752098891280,3.93078,2765.4,2765.3,0.72299]
[1752098891577,0.72299,2765.3,2765.2,1.7117]
[1752098891777,2.65733419,2765.3,2765.2,2.3279]
[1752098892079,2.65733419,2765.3,2765.2,1.3392]
[1752098892483,2.65733419,2765.3,2765.2,0.6162]
[1752098893276,2.65733419,2765.3,2765.2,1.33922]
[1752098895484,2.65733419,2765.3,2765.2,0.6162]
[1752098895783,0.72302,2765.2,2765.1,2.04842]
[1752098895978,2.02046419,2765.2,2765.1,0.72302]
[1752098896282,2.65736419,2765.2,2765.1,1.33922]
[1752098896779,0.72307,2765.0,2764.8,0.7775]
[1752098896976,1.80751,2765.3,2764.9,1.71179]
[1752098897181,2.02144065,2765.2,2765.1,0.72302]
[1752098897382,0.72307,2765.1,2765.0,0.72306]
[1752098897583,0.70057557,2765.1,2765.0,0.72306]
[1752098897881,0.72307,2765.0,2764.9,2.32799]
[1752098898183,0.72305,2765.2,2765.1,0.723]
[1752098898581,2.02152218,2765.2,2765.1,0.723]
[1752098898784,1.29847218,2765.2,2765.1,0.723]
[1752098898984,2.02149218,2765.2,2765.1,0.723]
[1752098899684,2.65839218,2765.2,2765.1,0.723]
[1752098900486,2.65839218,2765.2,2765.1,1.3392]
[1752098900986,2.02149218,2765.2,2765.1,1.85236707]
[1752098901186,2.65839218,2765.2,2765.1,1.85236707]
[1752098902479,2.65839218,2765.2,2765.1,1.23616707]
[1752098902680,2.65839218,2765.2,2765.1,0.51316707]
[1752098903089,3.46509218,2765.2,2765.1,0.51316707]
[1752098904889,0.72308,2765.0,2764.9,0.72309]
[1752098905083,0.72308,2765.0,2764.9,1.12978068]
[1752098905283,2.02155218,2765.0,2764.9,0.51358068]
[1752098905484,2.02155218,2765.0,2764.9,1.23668068]
[1752098905788,2.65845218,2765.0,2764.9,1.85288068]
[1752098906990,2.65845218,2765.0,2764.9,1.12978068]
[1752098907186,2.65845218,2765.0,2764.9,1.23668068]
[1752098907387,2.65845218,2765.0,2764.9,1.85288068]
[1752098907587,2.65845218,2765.0,2764.9,1.23668068]
[1752098907787,2.65845218,2765.0,2764.9,1.85288068]
[1752098907988,2.02155218,2765.0,2764.9,1.85288068]
[1752098908189,2.65845218,2765.0,2764.9,1.85288068]
[1752098908485,2.02155218,2765.0,2764.9,1.3393]
[1752098908988,1.29847218,2765.0,2764.9,3.24013871]
[1752098909187,3.93086,2765.1,2765.0,0.72307]
[1752098909379,4.5229629,2765.1,2765.0,2.32797]
[1752098909589,2.0382029,2765.1,2765.0,2.32797]
[1752098910492,1.3151629,2765.1,2765.0,2.32797]
[1752098910691,2.0382029,2765.1,2765.0,2.32797]
[1752098912190,0.7231,2764.9,2764.8,3.9853]
[1752098912391,0.7231,2764.9,2764.8,5.84037639]